Cogmind - Beta 16 @@@ ROGUE MODE // 2026.01.18 @ 13:04:02 Player: MAXX-P31 Result: Self-destructed Performance ------------- Evolutions (0) 0 Regions Visited (4) 800 Robots Destroyed (25) 125 Value Destroyed (391) 391 Prototype IDs (23) 460 Alien Tech Used (0) 0 Bonus (314) 314 TOTAL SCORE: 2090 Bonus ------- Follower Combat Kills 14 Aligned with FarCom 300 Cogmind --------- Core Integrity 165/250 Matter 300/300 Energy 250/250 System Corruption 0% Temperature Cool (0) Movement Treading (240) Ox1 Location -9/Mines Parts ------- > --- POWER (1) -------- Ion Engine > --- PROPULSION (2) --- Light Treads Light Treads > --- UTILITY (2) ------ High-capacity Storage Unit Seismic Detector > --- WEAPON (2) ------- Assault Rifle Assault Rifle > --- INVENTORY (20) --- Ion Engine Improved Heat Sink Improved Heat Sink Large Storage Unit High-capacity Storage Unit Huge Storage Unit Large Matter Pod (150) Shield Generator Shield Generator Medium Laser Particle Gun Latent Energy Streamer Assault Rifle Assault Rifle Assault Rifle Light Assault Rifle Makeshift Sword Peak State ------------ > --- POWER ------------ Ion Engine > --- PROPULSION ------- Light Treads Light Treads > --- UTILITY ---------- High-capacity Storage Unit Seismic Detector > --- WEAPON ----------- Assault Rifle Assault Rifle > --- INVENTORY -------- Ion Engine Improved Heat Sink Large Storage Unit High-capacity Storage Unit Huge Storage Unit Large Matter Pod Shield Generator Shield Generator Medium Laser Particle Gun Latent Energy Streamer Assault Rifle Assault Rifle Assault Rifle Light Assault Rifle Makeshift Sword [Rating: 10] Favorites ----------- Power Ion Engine Engine Ion Engine Propulsion Light Treads Treads Light Treads Utility Seismic Detector Device Seismic Detector Storage Large Storage Unit Weapon Assault Rifle Energy Gun Particle Gun Ballistic Gun Assault Rifle Build | -11 -10 -10 -10 -9 ------- Run | Yrd Mat Min Exi Min Slots Evolved . | . . . . . Power . | . . . . . Propulsion . | . . . . . Utility . | . . . . . Weapon . | . . . . . Parts Attached 16 | 7 7 1 1 . Power 1 | 1 . . . . Engine 1 | 1 . . . . Core . | . . . . . Reactor . | . . . . . Propulsion 4 | 2 1 1 . . Treads 4 | 2 1 1 . . Leg . | . . . . . Wheel . | . . . . . Hover . | . . . . . Flight . | . . . . . Utility 5 | 2 2 . 1 . Device 1 | 1 . . . . Storage 4 | 1 2 . 1 . Processor . | . . . . . Hackware . | . . . . . Protection . | . . . . . Artifact . | . . . . . Weapon 6 | 2 4 . . . Energy Gun 1 | . 1 . . . Energy Cannon . | . . . . . Ballistic Gun 5 | 2 3 . . . Ballistic Cannon . | . . . . . Launcher . | . . . . . Special Weapon . | . . . . . Impact Weapon . | . . . . . Slashing Weapon . | . . . . . Piercing Weapon . | . . . . . Special Melee Weapon . | . . . . . Unidentified Prototypes . | . . . . . Parts Lost 1 | . . 1 . . Power . | . . . . . Propulsion 1 | . . 1 . . Utility . | . . . . . Weapon . | . . . . . Highest Loss Streak 1 | . . 1 . . To Critical Strikes . | . . . . . Average Backups 9 | 1 6 13 13 16 Power . | . 1 1 1 1 Propulsion . | . . . . . Utility 3 | . 2 5 6 7 Weapon 4 | . 3 6 6 7 Tool/Special . | . . . . . Unused Backups 14 | . 1 . . 13 Power 1 | . . . . 1 Propulsion . | . . . . . Utility 8 | . 1 . . 7 Weapon 5 | . . . . 5 Tool/Special . | . . . . . Average Slot Usage (%) 99 | . 100 99 100 100 Engine 14 | . 14 14 14 14 Treads 27 | . 28 27 28 28 Device 14 | . 14 14 14 14 Storage 14 | . 14 14 14 14 Ballistic Gun 27 | . 27 28 28 28 Peak Build Rating 10 | 7 8 8 9 10 Average Rating 7 | 6 7 7 8 9 On Entrance 6 | . 7 8 8 9 Avg Prop Armor Cover (%) . | . . . . . Naked Turns . | . . . . . Heaviest Build 50 | 14 30 30 50 50 Greatest Support 40 | 40 40 40 40 40 Greatest Overweight (x) 1 | . . . 1 1 Average Overweight (x) . | . . . . 1 Largest Inventory Capacity 20 | 8 15 15 20 20 Average Capacity 12 | 7 9 15 15 20 Most Carried 17 | 2 13 13 15 17 Average Carried 9 | 1 7 12 13 16 Final Capacity 20 | 8 15 15 20 20 Final Carried 17 | 2 13 13 15 17 Class Distribution -------------------- 100% | Mutant Dominant Class ---------------- Mutant | -10/Materials Mutant | -10/Mines Mutant | -10/Exiles Mutant | -9/Mines Resources | -11 -10 -10 -10 -9 ----------- Run | Yrd Mat Min Exi Min Matter Collected 953 | 330 498 87 . 38 Remotely . | . . . . . Salvage Created 689 | 158 432 87 . 12 Parts 54 | 16 32 6 . . Haulers Intercepted 2 | . 2 . . . Recyclers Shooed 3 | 1 1 . . 1 Parts Field Recycled . | . . . . . Retrieved Matter . | . . . . . Parts Self-Destructed . | . . . . . Prevented . | . . . . . Parts Restored . | . . . . . Kills | -11 -10 -10 -10 -9 ------- Run | Yrd Mat Min Exi Min Combat Hostiles Destroyed 14 | . 11 2 . 1 Guns 14 | . 11 2 . 1 Classes Destroyed 7 | 3 4 . . . Worker 3 | 1 2 . . . Tunneler 4 | 4 . . . . Hauler 2 | . 2 . . . Recycler 1 | 1 . . . . Watcher 1 | . 1 . . . Swarmer 7 | . 6 . . 1 Grunt 7 | . 5 2 . . Best Kill Streak 5 | 2 5 2 . 1 Combat Bots Only 5 | . 5 2 . 1 Max Kills in Single Turn 1 | 1 1 1 . 1 Gunslinging . | . . . . . Exploded . | . . . . . Melee . | . . . . . Uniques/NPCs Destroyed . | . . . . . Combat | -11 -10 -10 -10 -9 -------- Run | Yrd Mat Min Exi Min Hostile Shots Fired 73 | . 49 18 . 6 Missed 18 | . 8 6 . 4 Hits 55 | . 41 12 . 2 Projectile 55 | . 41 12 . 2 Damage Taken 585 | . 398 172 . 15 Core 85 | . 56 29 . . Absorbed by Shields . | . . . . . Core Remaining (%) 100 | 100 . . . . Volleys Fired 80 | 18 50 9 . 3 Largest 2 | 2 2 2 . 2 Hottest 85 | 40 85 40 . 40 Shots Fired 160 | 36 100 18 . 6 Gun 160 | 36 100 18 . 6 Cannon . | . . . . . Launcher . | . . . . . Special . | . . . . . Kinetic 158 | 36 98 18 . 6 Thermal 2 | . 2 . . . Explosive . | . . . . . Electromagnetic . | . . . . . Robot Hit Streak 8 | 5 7 8 . 3 Robot Miss Streak 7 | 2 7 2 . 1 Penetration Max . | . . . . . Secondary Targets 2 | . 1 1 . . Max Gunslinging Chain 1 | . 1 1 . . Shots Hit Robots 93 | 21 55 13 . 4 Core Hits 43 | 12 24 5 . 2 Critical Kills 1 | . 1 . . . Critical Parts Destroyed . | . . . . . Critical Strikes 1 | . 1 . . . Destroy 1 | . 1 . . . Melee Attacks . | . . . . . Impact . | . . . . . Slashing . | . . . . . Piercing . | . . . . . Sneak Attacks . | . . . . . Combat Hostiles . | . . . . . Follow-up Attacks . | . . . . . Damage Inflicted 1115 | 239 626 177 . 73 Guns 1061 | 235 607 166 . 53 Cannons . | . . . . . Explosions . | . . . . . Melee . | . . . . . Ramming 54 | 4 19 11 . 20 Kinetic 1047 | 235 593 166 . 53 Thermal 14 | . 14 . . . Explosive . | . . . . . Electromagnetic . | . . . . . Impact . | . . . . . Slashing . | . . . . . Piercing . | . . . . . Highest Corruption . | . . . . . Average Corruption . | . . . . . Corruption Purged . | . . . . . Corruption Blocked . | . . . . . Overload Shots . | . . . . . Overflow Damage . | . . . . . Projectiles . | . . . . . Explosions . | . . . . . Melee . | . . . . . Knockbacks 1 | . . . . 1 Impact 1 | . . . . 1 Kinetic . | . . . . . Secondary . | . . . . . Self-Inflicted Damage . | . . . . . Shots . | . . . . . Rammed 12 | 2 7 1 . 2 Targets Rammed 13 | 2 8 1 . 2 Kicked . | . . . . . Crushed 1 | . 1 . . . Highest Temperature 68 | . 68 8 . . Average Temperature 12 | . 15 3 . . Received Heat Transfer 222 | . 126 96 . . Siege Activations . | . . . . . Martial Activations . | . . . . . Shielding Activations . | . . . . . Robots Disrupted . | . . . . . Combat Hostiles . | . . . . . Robots Corrupted . | . . . . . Combat Hostiles . | . . . . . Parts Fried . | . . . . . Impact Corruptions . | . . . . . Robots Melted . | . . . . . Combat Hostiles . | . . . . . Parts Melted 1 | . . . . 1 Heat Transferred 37 | . 37 . . . Parts Sabotaged . | . . . . . Parts Stolen . | . . . . . Parts Stripped . | . . . . . Power Chain Reactions . | . . . . . Alert | -11 -10 -10 -10 -9 ------- Run | Yrd Mat Min Exi Min Maximum Alert Level . | . . . . . Low Security (%) 100 | 100 100 100 . 100 Level 1 . | . . . . . Level 2 . | . . . . . Level 3 . | . . . . . Level 4 . | . . . . . Level 5 . | . . . . . High Security . | . . . . . Max Security . | . . . . . Peak Influence 132 | 5 132 30 . 72 Initial . | . . . . . Average 24 | . 39 3 . 20 Influence Increases 498 | 30 316 50 . 102 Destroy 0b10 Robot/C 320 | . 220 40 . 60 Destroy 0b10 Robot/NC 55 | 30 25 . . . Destroy Leader 76 | . 56 10 . 10 Allied During Kill 2 | . . . . 2 Lose Combat Pursuer 45 | . 15 . . 30 Influence Decreases 498 | 30 316 50 . 102 Time Decay 488 | 30 316 40 . 102 Lost Part 10 | . . 10 . . Squads Dispatched 2 | . 2 . . . Investigation 1 | . 1 . . . Extermination . | . . . . . Reinforcement 1 | . 1 . . . Assault . | . . . . . Garrison . | . . . . . Intercept . | . . . . . Searches Triggered . | . . . . . Construction Impeded . | . . . . . Haulers Reinforced . | . . . . . Active Scanning Responses . | . . . . . Cargo Convoy Interrupts . | . . . . . Stealth | -11 -10 -10 -10 -9 --------- Run | Yrd Mat Min Exi Min Distress Signals . | . . . . . Communications Jammed . | . . . . . Distress Signals . | . . . . . Times Spotted 26 | . 22 2 . 2 Peak Tracking Total 5 | . 5 2 . 3 Tactical Retreats 2 | . 1 . . 1 Traps | -11 -10 -10 -10 -9 ------- Run | Yrd Mat Min Exi Min Traps Triggered 1 | . 1 . . . Indirectly . | . . . . . Trap Hack Attempts . | . . . . . Triggered . | . . . . . Disarmed . | . . . . . Reprogrammed . | . . . . . Reused . | . . . . . Traps Extracted . | . . . . . Installed . | . . . . . Triggered . | . . . . . Machines | -11 -10 -10 -10 -9 ---------- Run | Yrd Mat Min Exi Min Machines Disabled . | . . . . . Max in Single Turn . | . . . . . Machines Repaired . | . . . . . Machines Dismantled . | . . . . . Machines Sabotaged . | . . . . . Overloaded Fab Kills . | . . . . . Hacking | -11 -10 -10 -10 -9 --------- Run | Yrd Mat Min Exi Min Machines Accessed 4 | . 3 . 1 . Terminals 3 | . 3 . . . Fabricators . | . . . . . Repair Stations . | . . . . . Recycling Units . | . . . . . Scanalyzers . | . . . . . Garrison Access . | . . . . . Total Hacks 11 | . 10 . 1 . Successful 4 | . 3 . 1 . Failed 7 | . 7 . . . Catastrophic 2 | . 2 . . . Database Lockouts . | . . . . . Manual 7 | . 6 . 1 . Terminals 10 | . 10 . . . Fabricators . | . . . . . Repair Stations . | . . . . . Recycling Units . | . . . . . Scanalyzers . | . . . . . Garrison Access . | . . . . . Terminal Hacks 2 | . 1 . 1 . Alert Level 1 | . 1 . . . Proto ID Catalog 1 | . . . 1 . Fabricator Hacks . | . . . . . Repair Station Hacks . | . . . . . Recycling Unit Hacks . | . . . . . Scanalyzer . | . . . . . Garrison Access Hacks . | . . . . . Unauthorized Hacks 2 | . 2 . . . Terminals 2 | . 2 . . . Botnet 2 | . 2 . . . Fabricators . | . . . . . Repair Stations . | . . . . . Recycling Units . | . . . . . Scanalyzers . | . . . . . Garrison Access . | . . . . . Data Cores Recovered . | . . . . . Used . | . . . . . Hacking Detections 3 | . 3 . . . Full Trace Events 1 | . 1 . . . Feedback Events . | . . . . . Feedback Blocked . | . . . . . Robot Schematics Acquired . | . . . . . Robots Built . | . . . . . Authchips . | . . . . . Time . | . . . . . Total Robot Build Rating . | . . . . . Part Schematics Acquired . | . . . . . Parts Built . | . . . . . Authchips . | . . . . . Time . | . . . . . Total Part Build Rating . | . . . . . Part Studies Acquired . | . . . . . Parts Repaired . | . . . . . Time . | . . . . . Parts Recycled . | . . . . . Recycled Matter . | . . . . . Retrieved Matter . | . . . . . Retrieved Components . | . . . . . Parts Scanalyzed . | . . . . . Part Schematics Acquired . | . . . . . Parts Damaged . | . . . . . Bothacking | -11 -10 -10 -10 -9 ------------ Run | Yrd Mat Min Exi Min Used RIF Installer . | . . . . . Robots Hacked . | . . . . . Non-combat . | . . . . . Combat . | . . . . . Robot Hacks Applied . | . . . . . Relay Couplers Released . | . . . . . Fabnet Peak Effective % . | . . . . . Robots Rewired . | . . . . . Allies Hacked . | . . . . . Hacks Repelled . | . . . . . Allies | -11 -10 -10 -10 -9 -------- Run | Yrd Mat Min Exi Min Total Allies 1 | . . . . 1 Largest Group 1 | . . . . 1 Highest-Rated Group 31 | . . . . 31 Highest-Rated Ally 31 | . . . . 31 Total Orders . | . . . . . Ally Attacks 14 | . . . . 14 Total Damage 143 | . . . . 143 Kills 2 | . . . . 2 Allies Corrupted . | . . . . . Allies Melted . | . . . . . Intel | -11 -10 -10 -10 -9 ------- Run | Yrd Mat Min Exi Min Active Infowar (turns) 2165 | 186 932 306 430 311 Seismic 2165 | 186 932 306 430 311 Robot Analysis Total . | . . . . . Derelict Logs Recovered 2 | . . 1 . 1 Drone Launches . | . . . . . Drone Recoveries . | . . . . . Exploration | -11 -10 -10 -10 -9 ------------- Run | Yrd Mat Min Exi Min Turns Passed 2231 | 252 932 306 430 311 Spaces Moved 1115 | 120 453 173 253 116 Core 5 | 5 . . . . Treads 1110 | 115 453 173 253 116 Legs . | . . . . . Wheels . | . . . . . Hover . | . . . . . Flight . | . . . . . Fastest Speed 50 | 50 160 160 160 240 Average Speed 170 | 155 160 160 169 240 Slowest Speed 240 | 160 160 160 240 240 Overloaded Moves . | . . . . . Propulsion Burnouts . | . . . . . Robots Hopped . | . . . . . Potential Cave-ins . | . . . . . Cave-ins Triggered . | . . . . . Exploration Rate (%) 37 | 7 76 22 62 22 Regions Visited 4 Branch Regions 3 Pre-discovered Areas 1 | . . . . 1 Known Exits Taken . | . . . . . Unknown Exits Taken 4 | 1 1 1 1 . Scrap Searched . | . . . . . Spaces Dug . | . . . . . Terrain Destroyed . | . . . . . Melee . | . . . . . Projectile . | . . . . . AOE . | . . . . . Terrain Rammed . | . . . . . Walls Destroyed . | . . . . . Machines Disabled . | . . . . . Actions | -11 -10 -10 -10 -9 --------- Run | Yrd Mat Min Exi Min Total 1291 | 149 565 184 254 139 Wait 44 | . 28 . . 16 Move 1111 | 119 452 172 252 116 Hop . | . . . . . Pick Up 17 | 3 10 1 1 2 Fast Attach 10 | 6 4 . . . Attach 2 | 1 . 1 . . Detach 2 | . 2 . . . Swap 6 | . 5 . 1 . Drop 6 | . 6 . . . Fire 80 | 18 50 9 . 3 Melee . | . . . . . Ram . | . . . . . Kick . | . . . . . Crush 13 | 2 8 1 . 2 Escape Stasis . | . . . . . Rewire . | . . . . . Trap . | . . . . . Miscellaneous . | . . . . . Route ------- -11/Scrapyard -10/Materials (discovered 4 exits: *Mat x3 / [*Min]) -10/Mines (discovered 2 exits: Mat / *Exi) -10/Exiles -9/Mines (discovered 1 exit: [*Mat]) History --------- Turn | Location | Event 2 | -11/Scrapyard | Met Revision 17 9 | -11/Scrapyard | Discovered new exit (range 15) 253 | -11/Scrapyard | Entered Materials 311 | -10/Materials | Build established: Mutant 482 | -10/Materials | Discovered new exit (range 3) 708 | -10/Materials | Discovered new exit (range 16) 876 | -10/Materials | Discovered new exit (range 16) 1082 | -10/Materials | Discovered new exit (range 16) 1185 | -10/Materials | Entered Mines 1238 | -10/Mines | Identified exit to Materials 1298 | -10/Mines | Found a hidden stash of uninstalled traps 1307 | -10/Mines | Deemed a non-threat by the Exiles lab entrance 1307 | -10/Mines | Discovered new exit (range 5) 1491 | -10/Mines | Entered Exiles 1531 | -10/Exiles | Met 8R-AWN 1559 | -10/Exiles | Met EX-HEX 1602 | -10/Exiles | Met EX-BIN 1624 | -10/Exiles | Aligned with FarCom system 1626 | -10/Exiles | Given EX-Vault access code 1664 | -10/Exiles | Opened EX-Vault 1677 | -10/Exiles | Found Latent Energy Streamer 1712 | -10/Exiles | Warned to stay clear of 0b10 Research branches 1760 | -10/Exiles | Met EX-DEC 1895 | -10/Exiles | Discovered new exit (range 14) 1921 | -10/Exiles | Left Exiles lab with Latent Energy Streamer 1921 | -10/Exiles | Entered Mines 1924 | -9/Mines | Received a Mining Laser from a helpful Derelict 1950 | -9/Mines | A weapon hastily lodged in a ceiling crevice suddenly fell to the ground 2152 | -9/Mines | Learned location of Recycling (-8) 2191 | -9/Mines | Discovered new exit (range 14) 2232 | -9/Mines | Self-destructed Last Messages --------------- 01955_ Acquired Mak. Sword. 01980_ Acquired 20 matter. 01986_ R-06 Scavenger collects Flight Unit. 01992_ R-06 Scavenger collects Lgt. Assault Rifle. 01996_ R-06 Scavenger collects Lgt. Ion Engine. 01999_ Slammed into R-06 Scavenger. 01999_ R-06 Scavenger knocked back. 02054_ K-01 Serf collects debris. 02096_ S-10 Pest suffers critical hit (Burn). 02101_ N5-P9S(g) destroyed. 02105_ Lgt. Assault Rifle melted. 02105_ S-10 Pest destroyed. 02113_ Acquired Imp. Heat Sink. 02114_ Acquired 18 matter. 02152_ Acquired derelict log, extracted data. World map updated: -8/Recycling. 02176_ Slammed into K-01 Serf. 02177_ T-07 Excavator is excavating. 02191_ EXIT=FOUND Map ----- +----------------------------------------------------+ | ???# ??????????????# #????# | | ??? ?????########## #???## | | ???? ?????# =%!#???# # | | ???? #?????# ##########??# ## | | ????# #?????# #??????????# #? | | ????#%#?????# #?????????# % ? | | ????# ####### ####??????# ? | | ???## #????? ? | | ???# #???? #? | | ???# ###### #??? ### ##? | | ??## #????? #?# ???# ??? | | ?## ##????? ## ????## ??? | | ?# #?????? #???????### ??? | | ?# #??????? s?s???????# ??? | | ?# #??????? "????????# ??? | | ?## #??????? "????????# ??? | | ??#### #??????? "????????# ??? | | ?????# #???????? ???????? ???? | | ?????# #????????# ????????????? | | ?????# #?????????# ????????????? | | ?##### #??????????#????????????? | | ?# ####????????????????????? | | ?# # ##???????????????????? | | ?# #???????????????????? | | ?# < ######??????????????? | | ?##### @ #??????????????? | | ?????# ##### #??????????????? | | ?????## ##????????????????????? | | ??????#####?????????????????????? | | ????????????????????????????????? | | ????????????????????????????????? | | ????????????????????????????????? | | ????????????????????????????????? | | ????????????????????????????????? | | ????????????????????????????????? | | ????????????????????????????????? | | ????????????????????????????????? | | ????????????????????????????????? | | ????????????????????????????????? | | ????????????????????????????????? | | ????????????????????????????????? | | ????????????????????????????????? | | ????????????????????????????????? | | ????????????????????????????????? | | ????????????????????????????????? | | ????????????????????????????????? | | ????????????????????????????????? | | ????????????????????????????????? | | ????????????????????????????????? | | ????????????????????????????????? | +----------------------------------------------------+ Best States ------------- Heat Dissipation 25 Energy Generation 10 Energy Capacity 250 Matter Stores 300 Matter Capacity 300 Sight Range 16 Terrain Scan Density 10 Evasion (%) 40 Recoil Reduction 2 Item Schematics ----------------- None Robot Schematics ------------------ None Fabricated ------------ Nothing Repaired ---------- Nothing Studied --------- None Alien Tech Used ----------------- None Achievements -------------- Sixth Sense Challenges ------------ None Game ------ Seed BiometalBattleLegs Manual? 0 Play Time 00:11:41 Cumulative 293.3 hours Start 2026.01.18 @ 12:51:47 End 2026.01.18 @ 13:04:02 Sessions 1 Manual Loads 0 Difficulty Rogue Special Mode None Game No. 153 Rogue 153 Adventurer 0 Explorer 0 Win Type - Total 5 Types 5/0/0/0/0/0/0/0/0/0 Lore% 56 Gallery% 65 Achievement% 44 Wizard Run 0 Options --------- Layout 1 ASCII 0 Keyboard 0 Movement Numpad Keybinds 0 Fullscreen 1 Font 24/Smallcaps Map View 50x35 Zoom Use 0% Tactical HUD 1 Map Filters NONE Filters NONE Steam 1 RUN: 0f8098b0-cb0c-474d-9ad3-bf872852211e